bitfinex-derivatives/quotes_ETHF0:USTF0_20250411
["timestamp","ask_amount","ask_price","bid_price","bid_amount"]
[1744392867631,1.27701,1566.9,1566.8,4.49443723]
[1744392867819,5.23471,1566.9,1566.8,4.49443723]
[1744392868529,13.44251,1566.9,1566.8,0.00956723]
[1744392869333,10.23471,1566.9,1566.8,0.00956723]
[1744392869937,13.44251,1566.9,1566.8,0.00956723]
[1744392871231,10.23471,1566.9,1566.8,0.00956723]
[1744392871433,13.44251,1566.9,1566.8,0.00956723]
[1744392875139,8.44251,1566.9,1566.8,0.00956723]
[1744392881145,7.1655,1566.9,1566.8,1.28665723]
[1744392881348,3.2078,1566.9,1566.8,1.28665723]
[1744392881747,3.2078,1566.9,1566.8,3.42375723]
[1744392882254,0.00956723,1567.0,1566.9,1.27701]
[1744392882551,1.28649723,1567.0,1566.9,3.44451]
[1744392882852,0.00956723,1567.0,1566.9,3.44451]
[1744392883055,1.28649723,1567.0,1566.9,3.44451]
[1744392883355,0.00956723,1567.0,1566.9,3.44451]
[1744392884552,1.28649723,1567.0,1566.9,3.44451]
[1744392884853,0.00956723,1567.0,1566.9,3.44451]
[1744392885853,0.00956723,1567.0,1566.9,6.65231]
[1744392886154,0.00956723,1567.0,1566.9,11.65231]
[1744392893058,0.00956723,1567.0,1566.9,6.65231]
[1744392896968,0.00956723,1567.0,1566.9,11.65231]
[1744392897364,13.68202614,1567.7,1567.6,1.27644]
[1744392897562,15.83432614,1567.7,1567.6,1.27644]
[1744392897863,14.55793614,1567.7,1567.6,1.27644]
[1744392898175,8.73783614,1567.7,1567.6,4.48424]
[1744392898358,4.43180614,1567.7,1567.6,11.67864]
[1744392898558,9.89493748,1567.8,1567.7,1.27636]
[1744392898762,1e-06,1567.8,1567.7,5.83483171]
[1744392898959,1e-06,1567.8,1567.7,51.63483171]
[1744392899867,1e-06,1567.8,1567.7,46.13306]
[1744392900769,1.276281,1567.8,1567.7,42.9944]
[1744392900958,1.27636,1567.7,1567.6,4.49376723]
[1744392901158,5.435951,1567.8,1567.7,1.27636]
[1744392901367,1e-06,1567.8,1567.7,4.48416]
[1744392901566,1e-06,1567.8,1567.7,6.59606]
[1744392902857,1e-06,1567.8,1567.7,3.38826]
[1744392903264,2.234601,1567.8,1567.7,3.38826]
[1744392903467,1e-06,1567.8,1567.7,3.38826]
[1744392903963,2.073101,1567.8,1567.7,3.38826]
[1744392904668,3.349381,1567.8,1567.7,3.38826]
[1744392905162,1e-06,1567.8,1567.7,6.59606]
[1744392905569,1.276281,1567.8,1567.7,6.59606]
[1744392906574,1e-06,1567.8,1567.7,6.59606]
[1744392906767,2.041701,1567.8,1567.7,6.59606]
[1744392907567,1e-06,1567.8,1567.7,6.59606]
[1744392907764,1e-06,1567.8,1567.7,16.21006]
[1744392908561,1e-06,1567.8,1567.7,57.01006]
[1744392911563,1e-06,1567.8,1567.7,52.01006]
[1744392912467,1e-06,1567.8,1567.7,57.01006]
[1744392912668,2.123,1568.2,1568.1,1.27604]
[1744392912971,3.39895,1568.2,1568.1,1.27604]
[1744392913165,7.123,1568.2,1568.1,4.48384]
[1744392913673,3.39895,1568.2,1568.1,4.48384]
[1744392914774,1.27606,1568.1,1567.9,8.45512]
[1744392914971,2.1962,1568.1,1568.0,1.27612]
[1744392915577,2.1962,1568.1,1568.0,42.07612]
[1744392915773,3.47224,1568.1,1568.0,42.07612]
[1744392915971,2.1962,1568.1,1568.0,42.07612]
[1744392917067,3.11543,1568.3,1568.2,1.27595]
[1744392917269,1.27595,1568.2,1568.1,4.48377]
[1744392917468,3.42775,1568.2,1568.1,4.48377]
[1744392918172,2.1518,1568.2,1568.1,4.48377]
[1744392918771,2.1518,1568.2,1568.1,6.66017]
[1744392918980,1.8936,1568.4,1568.3,1.27587]
[1744392919175,1.8936,1568.4,1568.3,4.48367]
[1744392919779,4.1072,1568.4,1568.3,4.48367]
[1744392922368,4.48329,1568.8,1568.4,1.27579]
[1744392922580,3.14295,1568.9,1568.8,1.27547]
[1744392922977,1.8675,1568.9,1568.8,1.27547]
[1744392923573,9.92374396,1569.2,1569.1,1.27522]
[1744392923984,11.19866396,1569.5,1569.4,1.27498]
[1744392924184,11.19866396,1569.5,1569.3,3.2078]
[1744392924185,9.92374396,1569.5,1569.3,3.2078]
[1744392924379,9.92374396,1569.5,1569.4,1.27498]
[1744392924787,12.10324396,1569.5,1569.4,1.27498]
[1744392924984,13.37814396,1569.5,1569.4,1.27498]
[1744392926591,12.10324396,1569.5,1569.4,1.27498]
[1744392926784,9.92374396,1569.5,1569.4,1.27498]
[1744392926989,9.92374396,1569.5,1569.4,3.33638]
[1744392927680,8.64188396,1569.5,1569.4,3.33638]
[1744392927881,12.39285713,1569.6,1569.5,1.2749]
[1744392928080,12.39285713,1569.6,1569.5,11.286]
[1744392928485,12.39285713,1569.6,1569.5,8.0782]
[1744392928681,13.66767713,1569.6,1569.5,1.2749]
[1744392928882,1.2749,1569.5,1569.4,1.2749]
[1744392929084,5.1219,1569.5,1569.4,1.2749]
[1744392929286,1.27498,1569.4,1569.3,0.00956723]
[1744392929488,2.0796,1569.4,1569.3,1.28462723]
[1744392929993,3.35458,1569.4,1569.3,1.28462723]
[1744392930398,3.35458,1569.4,1569.3,0.00956723]
[1744392930893,3.35458,1569.4,1569.3,1.28462723]
[1744392931196,3.35458,1569.4,1569.3,0.00956723]
[1744392931381,3.35458,1569.4,1569.3,1.28462723]
[1744392931584,2.0796,1569.4,1569.3,1.28462723]
[1744392931787,3.35458,1569.4,1569.3,1.28462723]
[1744392932385,8.35458,1569.4,1569.3,0.00956723]
[1744392933388,11.56238,1569.4,1569.3,0.00956723]
[1744392933794,8.35458,1569.4,1569.3,0.00956723]
[1744392933991,11.56238,1569.4,1569.3,0.00956723]
[1744392934691,8.35458,1569.4,1569.3,0.00956723]
[1744392935191,11.56238,1569.4,1569.3,0.00956723]
[1744392935591,16.17038,1569.4,1569.3,0.00956723]
[1744392935994,12.96258,1569.4,1569.3,0.00956723]
[1744392936194,16.17038,1569.4,1569.3,0.00956723]
[1744392937192,3.18809,1569.1,1568.7,1.27549]
[1744392937395,1.27555,1568.7,1568.6,45.28339]
[1744392939294,1.27563,1568.6,1568.5,0.00956723]
[1744392939499,3.02803,1568.6,1568.5,0.00956723]
[1744392939797,8.02803,1568.6,1568.5,0.00956723]
[1744392940390,13.02013,1568.6,1568.5,0.00956723]
[1744392940595,9.81233,1568.6,1568.5,0.00956723]
[1744392940793,13.02013,1568.6,1568.5,0.00956723]
[1744392941790,9.81233,1568.6,1568.5,0.00956723]
[1744392941995,0.00956722,1568.8,1568.6,1.27563]
[1744392942203,0.00956722,1568.8,1568.7,1.27555]
[1744392942402,0.00956722,1568.8,1568.7,3.42275]
[1744392942599,0.00956722,1568.8,1568.7,5.20355]
[1744392943096,0.00956722,1568.8,1568.7,10.20355]
[1744392944496,0.00956722,1568.8,1568.7,5.20355]
[1744392944695,2.18996722,1568.8,1568.7,3.42275]
[1744392945102,1.27555,1568.7,1568.6,1.27558]
[1744392945302,1.27563,1568.6,1568.5,0.00956723]
[1744392945503,3.45603,1568.6,1568.5,0.00956723]
[1744392945703,13.06403,1568.6,1568.5,0.00956723]
[1744392946299,8.06403,1568.6,1568.5,0.00956723]
[1744392948405,8.06403,1568.6,1568.5,1.28527723]
[1744392948908,8.06403,1568.6,1568.5,0.00956723]
[1744392949309,8.06403,1568.6,1568.5,1.28527723]
[1744392949508,8.06403,1568.6,1568.5,0.00956723]
[1744392950009,8.06403,1568.6,1568.5,1.28527723]
[1744392950309,8.06403,1568.6,1568.5,0.00956723]
[1744392950508,8.06403,1568.6,1568.5,1.28527723]
[1744392951709,8.06403,1568.6,1568.5,0.00956723]
[1744392955509,3.45603,1568.6,1568.5,1.28527723]
[1744392956308,3.45603,1568.6,1568.5,0.00956723]
[1744392956714,3.45603,1568.6,1568.5,1.98066723]
[1744392957715,8.45603,1568.6,1568.5,1e-08]
[1744392957914,1.27595,1568.2,1568.1,1.9711]
[1744392958618,3.24885,1568.2,1568.1,1.9711]
[1744392958809,1.27604,1568.1,1568.0,1.7173]
[1744392959011,3.24894,1568.1,1568.0,0.00956723]
[1744392959716,3.24894,1568.1,1568.0,2.00726723]
[1744392960316,1.27598,1568.2,1568.1,1.27598]
[1744392960517,1.27598,1568.2,1568.1,4.97398]
[1744392960721,1.27598,1568.2,1568.1,5.6957]
[1744392960912,1.27604,1568.1,1568.0,0.00956723]
[1744392961224,3.24894,1568.1,1568.0,0.00956723]
[1744392961418,6.45674,1568.1,1568.0,0.00956723]
[1744392962318,1.746,1568.2,1568.0,0.00956723]
[1744392962523,1.27604,1568.1,1568.0,1.28561723]
[1744392962712,1.27604,1568.1,1568.0,3.27491723]
[1744392962912,1.27604,1568.1,1568.0,1.99886723]
[1744392963418,3.35004,1568.1,1568.0,1.28568723]
[1744392963617,1.27601,1568.2,1568.1,1.27599]
[1744392963811,1.27601,1568.2,1568.1,3.26529]
[1744392964007,9.51549,1568.3,1568.1,3.26529]
[1744392964008,9.67573,1568.3,1568.2,1.27595]
[1744392964223,5.06773,1568.3,1568.2,3.26525]
[1744392964522,1.27565,1568.6,1568.5,1.27564]
[1744392964720,9.14942853,1568.8,1568.5,5.0]
[1744392964918,1.27576,1568.5,1568.3,3.04322]
[1744392965224,1.27576,1568.5,1568.4,2.1056]
[1744392966017,1.27579,1568.4,1568.3,1.7674]
[1744392966209,1.27579,1568.4,1568.3,3.873]
[1744392966714,6.6201,1568.5,1568.3,5.14887]
[1744392966915,6.6201,1568.5,1568.4,6.58919]
[1744392966916,4.609,1568.5,1568.4,6.58919]
[1744392967115,1.2757,1568.6,1568.4,6.58912]
[1744392967313,1.2757,1568.6,1568.5,2.0241]
[1744392967817,6.6135,1568.7,1568.5,2.0241]
[1744392967818,5.88461,1568.7,1568.6,1.27563]
[1744392968014,1.27563,1568.6,1568.5,2.0241]
[1744392968717,3.28012,1568.7,1568.5,3.29981]
[1744392969033,1.27563,1568.6,1568.5,3.29976]
[1744392969231,1.27563,1568.6,1568.5,2.0241]
[1744392969724,1.27571,1568.5,1568.4,40.8]
[1744392970026,1.27579,1568.4,1568.3,2.0241]
[1744392970622,1.27579,1568.4,1568.3,3.29997]
[1744392970820,3.28027,1568.5,1568.3,2.0241]
[1744392971024,3.18889,1568.7,1568.4,6.61742]
[1744392971226,1.27563,1568.6,1568.5,2.1339]
[1744392971423,1.27563,1568.6,1568.5,3.40961]
[1744392971619,3.32447,1568.7,1568.6,1.27563]
[1744392971827,1.27555,1568.7,1568.6,6.61733]
[1744392972132,0.00956722,1568.8,1568.7,1.27555]
[1744392972430,0.00956722,1568.8,1568.7,3.40945]
[1744392972727,0.00956722,1568.8,1568.7,8.40945]
[1744392973626,1.28503722,1568.8,1568.7,3.40945]
[1744392973827,0.00956722,1568.8,1568.7,3.40945]
[1744392974327,0.00956722,1568.8,1568.7,8.40945]
[1744392974527,12.34266131,1569.3,1569.2,1.27514]
[1744392974528,8.71257131,1569.3,1569.2,1.27514]
[1744392974830,1.27503,1569.4,1569.3,1.27505]
[1744392975630,1.27503,1569.4,1569.2,5.2861]
[1744392975631,8.18758,1569.4,1568.8,3.2078]
[1744392975929,1.2753,1569.0,1568.9,1.28489723]
[1744392976130,1.2753,1569.0,1568.9,0.00956723]
[1744392976831,6.2753,1569.0,1568.9,0.00956723]
[1744392977027,8.3684,1569.0,1568.9,0.00956723]
[1744392977528,3.3684,1569.0,1568.9,0.00956723]
[1744392981631,2.0931,1569.0,1568.9,1.28495723]
[1744392981833,5.1441,1569.2,1569.0,1.2753]
[1744392982031,5.1441,1569.2,1569.1,2.0985]
[1744392984337,3.3101,1569.2,1569.1,2.0985]
[1744392984537,4.607,1569.4,1569.1,2.0985]
[1744392984729,1.27514,1569.2,1569.1,2.0985]
[1744392985532,3.27593,1569.3,1569.1,3.37372]
[1744392985734,2.0008,1569.3,1569.2,1.27514]
[1744392986032,5.88204,1569.4,1569.3,1.27506]
[1744392986736,1.27506,1569.3,1569.2,3.26928]
[1744392987933,0.00956723,1569.5,1569.4,1.27498]
[1744392988235,0.00956723,1569.5,1569.3,3.8348]
[1744392988236,1.27498,1569.4,1569.3,3.8348]
[1744392988434,1.27498,1569.4,1569.3,5.10982]
[1744392989138,3.35750723,1569.5,1569.4,1.27498]
[1744392989340,1.28446723,1569.5,1569.4,3.25208]
[1744392989539,1.28446723,1569.5,1569.4,1.9771]
[1744392989739,1.28446723,1569.5,1569.4,3.25208]
[1744392990133,1.28446723,1569.5,1569.4,1.9771]
[1744392990335,3.35746723,1569.5,1569.4,1.9771]
[1744392991036,0.00956723,1569.5,1569.4,6.45988]
[1744392991242,0.00956723,1569.5,1569.4,11.45988]
[1744392991741,0.00956723,1569.5,1569.4,52.25988]
[1744392996345,0.00956723,1569.5,1569.4,47.25988]
[1744392998541,0.00956723,1569.5,1569.4,52.25988]
[1744392999247,0.00956723,1569.5,1569.4,47.25988]
[1744393001046,7.23e-06,1569.5,1569.4,52.25988]
[1744393002450,7.23e-06,1569.5,1569.4,47.25988]
[1744393003545,7.23e-06,1569.5,1569.4,52.25988]
[1744393003751,1.27444,1570.1,1570.0,1.27441]
[1744393004046,4.77092,1570.4,1570.3,1.27425]
[1744393004254,6.92072,1570.4,1570.3,1.27425]
[1744393005352,1.27425,1570.3,1570.2,3.34132723]
[1744393005651,2.1498,1570.3,1570.2,3.34132723]
[1744393006253,3.42405,1570.3,1570.2,3.34132723]
[1744393006655,2.1498,1570.3,1570.2,3.34132723]
[1744393006955,3.4967,1570.4,1570.3,1.27425]
[1744393007255,4.77087,1570.4,1570.3,3.35345]
[1744393007458,4.77087,1570.4,1570.3,1.27425]
[1744393007645,3.4967,1570.4,1570.3,3.35345]
[1744393007859,4.77087,1570.4,1570.3,3.35345]
[1744393008156,3.25365,1570.5,1570.4,1.27417]
[1744393008348,1.9795,1570.5,1570.4,3.35337]
[1744393008550,1.27407,1570.6,1570.4,3.35337]
[1744393008750,1.27409,1570.5,1570.4,3.35337]
[1744393009257,8.2078,1570.5,1570.2,0.00956723]
[1744393009445,1.9795,1570.4,1570.3,1.27421]
[1744393009854,3.25367,1570.4,1570.3,1.27421]
[1744393010152,5.07397,1570.4,1570.3,1.27421]
[1744393010854,1.8203,1570.4,1570.3,1.27421]
[1744393011060,2.047,1570.6,1570.5,1.27409]
[1744393011358,3.32102,1570.6,1570.5,1.27409]
[1744393012259,3.32102,1570.6,1570.4,1.9705]
[1744393012260,1.27409,1570.5,1570.4,3.2446]
[1744393012460,2.047,1570.5,1570.4,3.2446]
[1744393013659,1.27407,1570.6,1570.5,1.27409]
[1744393013960,3.43847,1570.6,1570.5,1.27409]
[1744393014566,1.27409,1570.5,1570.4,1.9705]
[1744393014755,1.27417,1570.4,1570.3,9.08497]
[1744393015061,1.27417,1570.4,1570.3,5.87717]
[1744393015262,4.98117,1570.4,1570.3,1.27417]
[1744393015461,4.98123,1570.4,1570.3,1.27425]
[1744393015662,3.707,1570.4,1570.3,1.27425]
[1744393015860,1.27405,1570.6,1570.5,1.274]
[1744393016161,1.27409,1570.5,1570.4,3.4512]
[1744393016560,1.27409,1570.5,1570.4,1.2741]
[1744393016862,1.27417,1570.4,1570.3,4.48197]
[1744393017062,1.27417,1570.4,1570.3,1.27417]
[1744393017258,3.42034,1570.5,1570.4,1.27417]
[1744393019065,2.1462,1570.5,1570.4,1.27417]
[1744393019367,2.1462,1570.5,1570.4,3.42017]
[1744393019968,3.42029,1570.5,1570.4,3.42017]
[1744393020169,2.1462,1570.5,1570.4,3.42017]
[1744393020365,3.7079,1570.6,1570.5,1.27409]
[1744393020566,3.7079,1570.6,1570.5,3.42009]
[1744393020867,4.9819,1570.6,1570.5,1.27409]
[1744393021066,1.27409,1570.5,1570.4,5.2848]
[1744393021267,3.29219,1570.5,1570.3,3.2078]
[1744393021458,3.29219,1570.5,1570.4,1.27417]
[1744393021658,2.0181,1570.5,1570.4,1.27417]
[1744393021958,3.29219,1570.5,1570.4,1.27417]
[1744393022158,3.29219,1570.5,1570.4,3.34847]
[1744393022469,2.0181,1570.5,1570.4,3.34847]
[1744393022766,1.27376,1570.9,1570.7,1.27385]
[1744393023065,1.9815,1570.8,1570.7,1.27385]
[1744393023271,1.9815,1570.8,1570.7,3.34815]
[1744393023464,3.25534,1570.8,1570.7,2.0743]
[1744393023666,1.9815,1570.8,1570.7,3.34822]
[1744393024367,3.5673,1571.0,1570.7,2.0743]
[1744393024568,1.7572,1571.0,1570.9,1.27376]
[1744393024772,4.95927035,1571.4,1571.3,1.27344]
[1744393024973,7.43746131,1571.5,1571.4,1.27336]
[1744393025168,12.39285713,1571.7,1571.6,1.27319]
[1744393025371,12.39285713,1571.7,1571.6,9.10699]
[1744393025673,13.66596713,1571.7,1571.6,3.2078]
[1744393025967,12.39285713,1571.7,1571.5,3.2078]
[1744393026269,2.1219,1571.6,1571.5,3.2078]
[1744393026463,12.39285713,1571.7,1571.6,1.27319]
[1744393026863,12.39285713,1571.7,1571.6,7.96489]
[1744393027569,17.2679532,1572.0,1571.6,7.96489]
[1744393027868,42.12287767,1572.1,1572.0,1.27287]
[1744393028071,42.12287767,1572.1,1572.0,6.17287]
[1744393028371,42.12287767,1572.1,1572.0,3.31947]
[1744393028774,3.27697,1572.4,1572.2,1.27265]
[1744393029069,7.63505,1572.3,1572.1,4.49011723]
[1744393029269,2.0044,1572.2,1572.1,4.49015723]
[1744393029476,8.3668,1572.2,1572.1,4.47716762]
[1744393029676,14.83193274,1572.2,1572.1,4.47716762]
[1744393029874,2.0044,1572.2,1572.1,4.47716762]
[1744393030170,1.833,1572.5,1572.3,1.27262]
[1744393030388,6.46513274,1572.5,1572.4,1.27255]
[1744393030567,12.82753274,1572.5,1572.4,3.31915]
[1744393031372,1.27234,1572.7,1572.5,1.27247]
[1744393031573,6.34559999,1572.6,1572.5,3.32707]
[1744393031975,12.81073273,1572.6,1572.5,3.32707]
[1744393032876,6.34559999,1572.6,1572.5,6.5348]
[1744393033073,12.81073273,1572.6,1572.5,6.5348]
[1744393033278,6.34559999,1572.6,1572.5,6.5348]
[1744393033870,2.0608,1572.8,1572.7,1.2723]
[1744393034073,6.34559999,1572.8,1572.7,4.4801]
[1744393034268,12.81073273,1572.8,1572.7,3.2078]
[1744393034473,17.81073273,1572.8,1572.5,2.0546]
[1744393034776,1.27247,1572.5,1572.4,4.48029]
[1744393035079,0.01680401,1572.5,1572.3,42.07261]
[1744393035378,8.332404,1572.4,1572.3,42.07261]
[1744393035568,9.604954,1572.4,1572.3,40.8]
[1744393035774,21.07008674,1572.4,1572.3,40.8]
[1744393035977,1.27263,1572.3,1572.2,4.48048]
[1744393036282,8.332404,1572.3,1572.2,1.27271]
[1744393036578,9.07110972,1572.3,1572.2,45.28051]
[1744393036775,0.01680401,1572.3,1572.2,45.28051]
[1744393038072,4.48007,1572.8,1572.4,3.18119]
[1744393038274,2.58917297,1572.7,1572.6,1.28913401]
[1744393038474,9.05430571,1572.8,1572.7,1.2723]
[1744393038680,2.58917297,1572.8,1572.7,3.3935]
[1744393038873,3.2078,1573.3,1572.7,7.13800401]
[1744393039074,0.50979852,1573.8,1573.1,6.3877]
[1744393039275,1.27112,1574.2,1573.9,1.27131]
[1744393039574,4.47897,1574.1,1574.0,0.01680401]
[1744393039775,3.2078,1574.4,1574.0,0.01680401]
[1744393039975,3.17725,1574.5,1573.4,4.896]
[1744393039976,3.19099599,1574.2,1573.8,5.329]
[1744393040276,3.2078,1574.2,1573.6,3.2078]
[1744393040478,3.2078,1574.2,1573.9,1.27131]
[1744393040684,1.27128,1574.0,1573.7,4.47924]
[1744393040886,1.27128,1574.0,1573.8,1.27141]
[1744393041076,1.27123,1574.1,1573.8,1.27138]
[1744393041384,3.2078,1574.1,1573.7,6.49765]
[1744393041579,1.7469,1574.1,1573.7,5.2262]
[1744393041778,3.2078,1574.1,1573.7,5.2262]
[1744393041970,3.2078,1574.1,1573.9,1.2713]
[1744393042174,3.8934,1574.4,1573.9,1.2713]
[1744393042385,1.27121,1574.1,1573.8,1.27136]
[1744393042573,2.1465,1574.0,1573.9,2.0184]
[1744393042979,3.41775,1574.0,1573.9,2.0184]
[1744393043283,2.1465,1574.0,1573.9,2.0184]
[1744393043580,3.2078,1574.3,1573.9,2.0184]
[1744393043780,5.2381,1574.2,1573.9,3.2897]
[1744393043983,6.8879,1574.4,1574.0,1.27119]
[1744393044278,6.8879,1574.4,1574.1,6.42827]
[1744393044482,2.0303,1574.5,1574.2,1.9493]
[1744393044682,10.1913,1574.6,1574.2,1.9493]
[1744393044683,5.0503,1574.6,1574.4,1.27088]
[1744393044878,5.0503,1574.6,1574.5,1.9493]
[1744393045183,3.2078,1574.8,1574.1,3.21733622]
[1744393045390,3.30117,1574.5,1574.2,1.9493]
[1744393045586,3.30117,1574.5,1574.2,1.27106]
[1744393045780,3.30117,1574.5,1574.2,3.22036]
[1744393046282,2.0303,1574.5,1574.2,1.9493]
[1744393046486,2.0303,1574.5,1574.1,0.00953622]
[1744393046487,5.139,1574.4,1574.1,0.00953622]
[1744393046683,1.839,1574.3,1574.1,0.00953622]
[1744393046881,1.839,1574.3,1574.1,3.19346622]
[1744393047073,4.47889,1574.2,1574.1,0.00953622]
[1744393047572,11.31789,1574.2,1574.1,0.00953622]
[1744393047976,3.11009,1574.2,1574.1,0.00953622]
[1744393048186,8.24909,1574.2,1574.1,0.00953622]
[1744393048480,16.45689,1574.2,1574.1,0.00953622]
[1744393048677,6.31789,1574.2,1574.1,0.00953622]
[1744393048982,8.24909,1574.2,1574.1,0.00953622]
[1744393049781,11.45689,1574.2,1574.1,0.00953622]
[1744393049982,3.2078,1574.6,1574.4,1.27086]
[1744393050181,5.1591,1574.6,1574.5,1.8819]
[1744393050387,5.1591,1574.6,1574.5,3.15275]
[1744393050589,5.1591,1574.6,1574.5,1.8819]
[1744393050781,1.9513,1574.6,1574.5,3.15275]
[1744393050989,1.6652,1574.7,1574.5,3.15275]
[1744393050990,10.0853,1574.9,1574.5,1.8819]
[1744393051283,0.10901762,1575.0,1574.9,1.27053]
[1744393051585,1.27007,1575.5,1575.2,1.27026]
[1744393051784,1.27038,1575.1,1575.0,40.8]
[1744393051985,3.2078,1575.3,1575.0,40.8]
[1744393052185,3.22164,1575.2,1574.9,4.48785622]
[1744393052484,1.27043,1575.1,1574.9,3.21733622]
[1744393052789,3.25577,1575.1,1574.9,5.20053622]
[1744393052979,4.47825,1575.0,1574.9,0.00953622]
[1744393053179,3.2078,1575.2,1574.9,3.21733622]
[1744393053488,1.9854,1575.2,1575.0,1.9832]
[1744393053675,1.9854,1575.2,1575.0,3.25361]
[1744393053881,3.25571,1575.2,1575.0,1.9832]
[1744393054076,5.409,1575.6,1575.1,3.2078]
[1744393054281,1.6056,1575.8,1575.3,3.2078]
[1744393054581,1.26996,1575.6,1575.4,0.9832]
[1744393054779,3.25544,1575.5,1575.4,0.9832]
[1744393055785,1.27012,1575.4,1575.3,3.2078]
[1744393055978,1.27,1575.6,1575.4,1.27012]
[1744393056181,3.2815,1575.6,1575.4,1.27012]
[1744393056383,3.2815,1575.6,1575.3,4.47794]
[1744393056587,2.0115,1575.6,1575.3,3.2078]
[1744393056890,1.27009,1575.5,1575.3,1.27015]
[1744393057192,1.27009,1575.5,1575.2,4.47802]
[1744393057488,1.27013,1575.4,1575.2,4.47802]
[1744393057691,1.2701,1575.5,1575.3,1.2702]
[1744393057989,1.2701,1575.5,1575.4,2.0384]
[1744393058185,1.2702,1575.3,1575.2,3.2078]
[1744393058386,2.0115,1575.4,1575.2,5.2462]
[1744393058586,3.28168,1575.4,1575.2,6.51648]
[1744393058794,1.2702,1575.3,1575.2,5.2462]
[1744393058988,3.2,1575.3,1575.2,3.2078]
[1744393059191,1.27037,1575.1,1575.0,1.9799]
[1744393059688,1.27045,1575.0,1574.9,3.21733622]
[1744393059994,1.9298,1575.0,1574.9,4.48786622]
[1744393060184,5.408,1575.2,1574.9,3.21733622]
[1744393060399,1.27045,1575.0,1574.9,3.21733622]
[1744393060592,1.27045,1575.0,1574.9,0.00953622]
[1744393062092,3.20023,1575.1,1574.9,3.22195622]
[1744393062390,3.20022,1575.1,1574.9,0.00953622]
[1744393062599,3.2078,1575.5,1575.0,3.2078]
[1744393062800,1.27022,1575.3,1575.1,1.9419]
[1744393062999,3.13038,1575.4,1575.1,3.21219]
[1744393063296,1.8602,1575.4,1575.2,3.21216]
[1744393063496,1.27002,1575.6,1575.2,5.1497]
[1744393063688,1.27007,1575.5,1575.3,1.27018]
[1744393063991,3.2078,1575.4,1575.0,4.47821]
[1744393064204,3.13037,1575.4,1575.0,5.1497]
[1744393064388,3.2078,1575.6,1575.2,3.2078]
[1744393064590,6.33801,1575.6,1575.4,1.2701]
[1744393064790,3.2078,1575.6,1575.5,1.9419]
[1744393064996,1.26995,1575.7,1575.5,3.21193]
[1744393065198,1.26996,1575.6,1575.5,1.9419]
[1744393065392,1.26992,1575.7,1575.5,1.9419]
[1744393065606,1.9023,1575.8,1575.5,1.9419]
[1744393065798,1.26996,1575.6,1575.5,1.9419]
[1744393065999,8.28466,1575.8,1575.2,8.6148]
[1744393066198,1.26999,1575.6,1575.3,2.011]
[1744393066493,1.27008,1575.5,1575.3,2.011]
[1744393066703,1.26993,1575.7,1575.3,2.011]
[1744393066901,1.7343,1575.9,1575.4,6.38312]
[1744393067090,8.09794,1576.2,1575.7,1.26985]
[1744393067287,1.2696,1576.1,1575.9,1.26972]
[1744393067589,1.26968,1576.0,1575.8,6.49807622]
[1744393067797,1.26968,1576.0,1575.8,3.29027622]
[1744393067995,1.26968,1576.0,1575.9,2.0652]
[1744393068196,1.9023,1576.1,1575.8,1.27933622]
[1744393068492,3.15322,1575.9,1575.8,0.00953622]
[1744393068891,8.15322,1575.9,1575.8,0.00953622]
[1744393069693,3.15322,1575.9,1575.8,0.00953622]
[1744393069891,11.78771,1576.1,1575.8,0.00953622]
[1744393069892,11.27912,1576.3,1575.8,0.00953622]
[1744393070098,1.26959,1576.1,1575.8,0.00953622]
[1744393070300,3.15304,1576.2,1575.8,5.24922622]
[1744393070608,3.15298,1576.2,1576.1,1.26956]
[1744393070809,1.26956,1576.1,1576.0,1.26958]
[1744393071001,3.17402,1576.1,1575.8,0.00953622]
[1744393071300,11.7865,1576.3,1575.8,0.00953622]
[1744393071507,1.26946,1576.3,1576.1,1.26952]
[1744393071696,1.695,1576.5,1576.2,2.0247]
[1744393072000,10.61815,1576.6,1576.2,2.0247]
[1744393072195,1.26927,1576.5,1576.3,1.26933]
[1744393072399,1.26932,1576.4,1576.3,1.26933]
[1744393072594,1.2694,1576.3,1576.0,4.8991]
[1744393072903,1.26943,1576.3,1576.1,1.26951]
[1744393073107,1.26948,1576.2,1576.0,2.96088]
[1744393073294,3.17351,1576.3,1575.8,3.21733622]
[1744393073491,3.17351,1576.3,1575.9,1.26968]
[1744393073492,1.26964,1576.1,1575.9,1.26968]
[1744393073794,2.0402,1576.2,1575.9,1.26968]
[1744393073991,1.26972,1575.9,1575.8,3.21733622]
[1744393074190,1.26972,1575.9,1575.8,0.00953622]
[1744393074395,7.4426,1576.0,1575.8,1.27931622]
[1744393074599,1.26964,1576.0,1575.9,1.26968]
[1744393074799,91.2268,1576.5,1575.9,3.17431]
[1744393074997,1.2695,1576.2,1576.1,1.26954]
[1744393077503,1.2695,1576.2,1575.9,3.2078]
[1744393077706,1.2695,1576.2,1576.1,1.26956]
[1744393078003,2.0376,1576.4,1576.2,1.26948]
[1744393078205,1.26947,1576.3,1576.1,1.2695]
[1744393078505,5.21092,1576.4,1576.0,1.26957]
[1744393078700,1.26952,1576.2,1576.1,1.26955]
[1744393078901,1.26952,1576.2,1576.0,1.26958]
[1744393079101,1.26972,1575.9,1575.8,1.27928622]
[1744393079398,1.26972,1575.9,1575.8,0.00953622]
[1744393079605,4.78606,1576.2,1575.9,1.26972]
[1744393079806,5.404,1576.4,1576.1,4.47736]
[1744393080000,5.404,1576.4,1576.1,3.2078]
[1744393080001,1.26944,1576.3,1576.1,3.2078]
[1744393080203,8.57731,1576.4,1575.9,3.2078]
[1744393080499,1.26972,1575.9,1575.8,0.00953622]
[1744393080705,6.67372,1575.9,1575.8,0.00953622]